fUSD/lending_fUSD_20241027
["ID","MTS","AMOUNT","RATE_DAILY","PERIOD"]
[340882005,1730006755945,5762.85701038,6.94e-05,2]
[340882006,1730006801222,4310.61045842,0.00012666,2]
[340882007,1730006840488,205.0,9.8e-05,2]
[340882008,1730006844595,246.63787552,0.000101,2]
[340882009,1730006878136,10144.2115742,0.00012579,2]
[340882010,1730006881961,8872.91455177,0.0001,2]
[340882011,1730006885203,31815.03611418,0.00015,2]
[340882012,1730006885318,5050.0,0.00044068,33]
[340882013,1730006892151,2174.52005367,0.00013,4]
[340882014,1730006914504,13875.50152616,0.000129,2]
[340882015,1730006920142,212.41312475,0.0001,2]
[340882016,1730006923953,2594.75663156,0.0001,2]
[340882021,1730007015857,250.0,0.00015,2]
[340882022,1730007018200,5000.0,0.00044069,30]
[340882041,1730007032342,-160.98,0.00015342,2]
[340882042,1730007032454,-300.0,0.00017,2]
[340882043,1730007032463,-199.0,0.000185,2]
[340882044,1730007032472,-2330.72529433,0.000199,3]
[340882045,1730007032483,-551.24087821,0.00023922,2]
[340882046,1730007032494,-631.13636308,0.00023922,2]
[340882048,1730007032503,-1673.8455135,0.00023922,2]
[340882050,1730007032511,-567.1352838,0.00025,7]
[340882052,1730007032522,-555.902,0.0003,2]
[340882054,1730007032531,-555.902,0.00031223,2]
[340882055,1730007032541,-10629.60563291,0.00034,120]
[340882056,1730007032552,-1991.22246173,0.00034,120]
[340882057,1730007032563,-2206.17190536,0.00034,120]
[340882058,1730007032572,-2775.68,0.00034,10]
[340882059,1730007032581,-560.25,0.00040494,2]
[340882060,1730007032590,-635.8,0.00040494,2]
[340882061,1730007032600,-555.902,0.00041216,14]
[340882062,1730007032609,-478.18,0.00041736,2]
[340882064,1730007032617,-1783.61034978,0.00042,2]
[340882066,1730007032626,-155.64,0.00042081,2]
[340882067,1730007032635,-1143.59422986,0.00042228,120]
[340882070,1730007038184,-1607.40577014,0.00042228,120]
[340882071,1730007038194,-6422.82,0.00042309,2]
[340882072,1730007038203,-250.0,0.0004231,120]
[340882073,1730007038213,-500.0,0.00042316,2]
[340882074,1730007038223,-254.93,0.00042316,2]
[340882075,1730007038232,-250.0,0.00042339,2]
[340882077,1730007038241,-1228.31,0.00042339,30]
[340882079,1730007038251,-800.0,0.00042347,2]
[340882080,1730007038260,-150.0,0.00042463,2]
[340882081,1730007038269,-500.0,0.00042513,2]
[340882082,1730007038278,-97.98061863,0.00042591,2]
[340882083,1730007038289,-102.01938137,0.00042591,2]
[340882084,1730007038299,-150.0,0.00042606,7]
[340882085,1730007038308,-831.39524144,0.00042631,2]
[340882086,1730007038411,-2359.06475856,0.00042631,2]
[340882087,1730007038420,-3830.69,0.00042728,2]
[340882088,1730007038430,-560.25,0.00042758,2]
[340882089,1730007038439,-46.02893353,0.00042856,2]
[340882090,1730007038576,-153.97106647,0.00042856,2]
[340882091,1730007038585,-151.74591226,0.00042866,2]
[340882138,1730007040410,-516.64408774,0.00042866,2]
[340882139,1730007040420,-239.3939584,0.000429,30]
[340882140,1730007040429,-155.64,0.00043724,2]
[340882141,1730007040438,-197.6532,0.00043958,2]
[340882142,1730007040447,-539.42201649,0.00043958,15]
[340882143,1730007040457,-539.42201647,0.00043959,15]
[340882144,1730007040467,-539.42201647,0.0004396,15]
[340882145,1730007040475,-539.42201647,0.00043961,15]
[340882146,1730007040485,-539.42201647,0.00043962,15]
[340882147,1730007040494,-317.905,0.00043963,69]
[340882148,1730007040503,-539.42201647,0.00043964,15]
[340882149,1730007040512,-1947.91236779,0.00043964,6]
[340882150,1730007040521,-539.42201647,0.00043965,15]
[340882151,1730007040531,-539.42201647,0.00043966,15]
[340882152,1730007040540,-539.42201647,0.00043967,15]
[340882153,1730007040550,-539.42201647,0.00043968,15]
[340882154,1730007040559,-215.94149961,0.00043968,16]
[340882155,1730007040568,-397.0,0.00044,31]
[340882156,1730007040578,-32161.46065274,0.00044,5]
[340882157,1730007040587,-449.0,0.00044,30]
[340882158,1730007040596,-228.34741522,0.00044052,2]
[340882159,1730007040605,-646.97498858,0.00044056,5]
[340882160,1730007040615,-2463.14277648,0.00044057,10]
[340882161,1730007040625,-27094.5705413,0.00044058,10]
[340882162,1730007040635,-25050.6211332,0.00044058,10]
[340882164,1730007040644,-500.0,0.00044059,5]
[340882166,1730007040654,-500.0,0.00044059,5]
[340882168,1730007040664,-3039.24,0.00044059,5]
[340882170,1730007040674,-8637.16,0.00044059,5]
[340882172,1730007040683,-3585.66,0.00044059,5]
[340882174,1730007040692,-500.0,0.0004406,5]
[340882175,1730007040701,-500.0,0.0004406,5]
[340882177,1730007040710,-500.0,0.0004406,5]
[340882179,1730007040720,-584.75,0.0004406,5]
[340882181,1730007040732,-500.0,0.0004406,5]
[340882183,1730007040741,-500.0,0.0004406,5]
[340882185,1730007040750,-500.0,0.00044061,5]
[340882187,1730007040759,-500.0,0.00044061,5]
[340882189,1730007040769,-500.0,0.00044061,5]
[340882191,1730007040777,-500.0,0.00044061,5]
[340882193,1730007040788,-500.0,0.00044062,5]
[340882195,1730007040798,-500.0,0.00044062,5]
[340882197,1730007040807,-500.0,0.00044062,5]
[340882199,1730007040816,-500.0,0.00044062,5]
[340882201,1730007040825,-584.75,0.00044062,5]
[340882203,1730007040834,-584.75,0.00044062,5]
[340882205,1730007040844,-500.0,0.00044062,5]
[340882207,1730007040853,-500.0,0.00044062,5]
[340882209,1730007040862,-1785.12601734,0.00044063,2]
[340882211,1730007040871,-154.408602,0.00044063,14]
[340882213,1730007040880,-500.0,0.00044063,5]
[340882214,1730007040889,-500.0,0.00044063,5]
[340882216,1730007040898,-500.0,0.00044063,5]
[340882218,1730007040907,-500.0,0.00044063,5]
[340882220,1730007040915,-500.0,0.00044063,5]
[340882222,1730007040925,-500.0,0.00044063,5]
[340882224,1730007040934,-229.14338424,0.00044063,5]
[340882226,1730007040943,-151.0,0.00044063,14]
[340882228,1730007040952,-151.0,0.00044063,14]
[340882230,1730007040961,-151.0,0.00044063,14]
[340882232,1730007040970,-151.0,0.00044063,14]
[340882234,1730007040979,-151.0,0.00044063,14]
[340882236,1730007040988,-151.0,0.00044063,14]
[340882238,1730007040997,-500.0,0.00044063,5]
[340882240,1730007041006,-500.0,0.00044063,5]
[340882242,1730007041015,-500.0,0.00044063,5]
[340882244,1730007041024,-500.0,0.00044063,5]
[340882246,1730007041032,-500.0,0.00044063,5]
[340882248,1730007041041,-500.0,0.00044063,5]
[340882250,1730007041050,-500.0,0.00044063,5]
[340882252,1730007041064,-190.79225087,0.00044063,5]
[340882253,1730007041073,-213.94027179,0.00044063,30]
[340882255,1730007041082,-213.94027179,0.00044063,30]
[340882257,1730007041091,-267.40251445,0.00044067,5]
[340882259,1730007041100,-500.0,0.00044067,5]
[340882261,1730007041109,-500.0,0.00044067,5]
[340882263,1730007041118,-500.0,0.00044067,5]
[340882265,1730007041127,-500.0,0.00044067,5]
[340882267,1730007041136,-3039.24,0.00044067,5]
[340882269,1730007041144,-3039.24,0.00044067,5]
[340882271,1730007041153,-500.0,0.00044067,5]
[340882273,1730007041162,-500.0,0.00044067,5]
[340882275,1730007041171,-2099.13,0.00044067,5]
[340882276,1730007041180,-2099.13,0.00044067,5]
[340882278,1730007041189,-8637.16,0.00044067,5]
[340882280,1730007041198,-8637.16,0.00044067,5]
[340882282,1730007041207,-3585.66,0.00044067,5]
[340882284,1730007041216,-3585.66,0.00044067,5]
[340882286,1730007041226,-500.0,0.00044067,5]
[340882288,1730007041237,-500.0,0.00044067,5]
[340882290,1730007041246,-500.0,0.00044067,5]
[340882292,1730007041255,-500.0,0.00044067,5]
[340882293,1730007041264,-1879.06,0.00044067,5]
[340882295,1730007041273,-1879.06,0.00044067,5]
[340882297,1730007041282,-500.0,0.00044067,120]
[340882299,1730007041291,-430.23678454,0.00044067,120]
[340882301,1730007041299,-500.0,0.00044067,120]
[340882303,1730007041309,-500.0,0.00044067,120]
[340882305,1730007041317,-500.0,0.00044067,120]
[340882306,1730007041327,-190.94262735,0.00044067,120]
[340882307,1730007041336,-446.33036519,0.00044068,120]
[340882308,1730007041345,-509.91022125,0.00044068,120]
[340882309,1730007041354,-500.0,0.00044068,31]
[340882310,1730007041363,-399.89852834,0.00044068,120]
[340882311,1730007041372,-312.03161145,0.00044068,120]
[340882312,1730007041381,-218.53295197,0.00044068,120]
[340882313,1730007041390,-249.56177586,0.00044068,31]
[340882314,1730007041399,-500.0,0.00044068,31]
[340882315,1730007041407,-500.0,0.00044068,31]
[340882316,1730007041416,-500.0,0.00044068,31]
[340882317,1730007041426,-248.97747701,0.00044068,31]
[340882318,1730007041435,-243.43806971,0.00044068,120]
[340882319,1730007041443,-151.0,0.00044068,14]
[340882320,1730007041452,-151.0,0.00044068,14]
[340882321,1730007041461,-151.0,0.00044068,14]
[340882322,1730007041470,-151.0,0.00044068,14]
[340882323,1730007041479,-648.9079271,0.00044068,5]
[340882324,1730007041488,-152.347256,0.00044068,14]
[340882325,1730007041497,-152.75606,0.00044068,14]
[340882326,1730007041506,-154.308273,0.00044068,14]
[340882327,1730007041515,-151.0,0.00044068,14]
[340882328,1730007041524,-151.0,0.00044068,14]
[340882329,1730007041533,-152.613675,0.00044068,14]
[340882330,1730007041542,-151.0,0.00044068,14]
[340882331,1730007041553,-151.0,0.00044068,14]
[340882332,1730007041562,-151.0,0.00044068,14]
[340882333,1730007041570,-151.0,0.00044068,14]
[340882334,1730007041579,-151.0,0.00044068,14]
[340882335,1730007041588,-151.0,0.00044068,14]
[340882336,1730007041597,-151.0,0.00044068,14]
[340882337,1730007041606,-151.0,0.00044068,14]
[340882338,1730007041615,-151.0,0.00044068,14]
[340882339,1730007041624,-151.0,0.00044068,14]
[340882340,1730007041633,-151.0,0.00044068,14]
[340882341,1730007041642,-151.0,0.00044068,14]
[340882342,1730007041653,-294.817237,0.00044068,14]
[340882343,1730007041663,-500.0,0.00044068,5]
[340882344,1730007041672,-500.0,0.00044068,5]
[340882345,1730007041682,-500.0,0.00044068,5]
[340882346,1730007041691,-500.0,0.00044068,5]
[340882347,1730007041700,-500.0,0.00044068,5]
[340882348,1730007041709,-500.0,0.00044068,5]
[340882349,1730007041719,-500.0,0.00044068,5]
[340882350,1730007041730,-500.0,0.00044068,5]
[340882351,1730007041739,-500.0,0.00044068,5]
[340882352,1730007041748,-500.0,0.00044068,5]
[340882353,1730007041757,-500.0,0.00044068,5]
[340882354,1730007041766,-500.0,0.00044068,5]
[340882355,1730007041776,-500.0,0.00044068,5]
[340882356,1730007041784,-549.29730204,0.00044068,5]
[340882357,1730007041794,-500.0,0.00044068,5]
[340882358,1730007041804,-500.0,0.00044068,5]
[340882359,1730007041813,-500.0,0.00044068,5]
[340882360,1730007041823,-500.0,0.00044068,5]
[340882361,1730007041832,-500.0,0.00044068,5]
[340882362,1730007041841,-500.0,0.00044068,5]
[340882363,1730007041851,-500.0,0.00044068,5]
[340882364,1730007041860,-500.0,0.00044068,5]
[340882365,1730007041869,-500.0,0.00044068,5]
[340882366,1730007041878,-500.0,0.00044068,5]
[340882367,1730007041887,-500.0,0.00044068,5]
[340882368,1730007041897,-500.0,0.00044068,5]
[340882369,1730007041906,-500.0,0.00044068,5]
[340882370,1730007041916,-500.0,0.00044068,5]
[340882371,1730007041925,-500.0,0.00044068,5]
[340882372,1730007041934,-500.0,0.00044068,5]
[340882373,1730007041944,-500.0,0.00044068,5]
[340882374,1730007041953,-416.58133762,0.00044068,5]
[340882375,1730007041963,-500.0,0.00044068,5]
[340882376,1730007041972,-500.0,0.00044068,5]
[340882377,1730007041982,-541.8144,0.00044068,5]
[340882378,1730007041991,-3039.24,0.00044068,5]
[340882379,1730007041999,-3039.24,0.00044068,5]
[340882380,1730007042009,-3039.24,0.00044068,5]
[340882381,1730007042018,-3039.24,0.00044068,5]
[340882382,1730007042027,-3039.24,0.00044068,5]
[340882383,1730007042036,-3039.24,0.00044068,5]
[340882384,1730007042046,-3039.24,0.00044068,5]
[340882385,1730007042056,-3039.24,0.00044068,5]
[340882386,1730007042065,-3039.24,0.00044068,5]
[340882387,1730007042075,-3039.24,0.00044068,5]
[340882388,1730007042084,-3039.24,0.00044068,5]
[340882389,1730007042093,-3039.24,0.00044068,5]
[340882390,1730007042103,-3039.24,0.00044068,5]
[340882391,1730007042111,-3039.24,0.00044068,5]
[340882392,1730007042120,-3039.24,0.00044068,5]
[340882393,1730007042130,-3039.24,0.00044068,5]
[340882394,1730007042139,-3039.24,0.00044068,5]
[340882395,1730007042148,-3039.24,0.00044068,5]
[340882396,1730007042157,-3039.24,0.00044068,5]
[340882397,1730007042167,-3039.24,0.00044068,5]
[340882398,1730007042176,-3039.44670632,0.00044068,5]
[340882399,1730007042185,-151.0,0.00044068,14]
[340882400,1730007042194,-151.0,0.00044068,14]
[340882401,1730007042203,-151.0,0.00044068,14]
[340882402,1730007042212,-151.0,0.00044068,14]
[340882403,1730007042222,-151.0,0.00044068,14]
[340882404,1730007042231,-151.0,0.00044068,14]
[340882405,1730007042240,-151.0,0.00044068,14]
[340882406,1730007042249,-358.609035,0.00044068,14]
[340882407,1730007042258,-358.609035,0.00044068,14]
[340882408,1730007042356,-584.75,0.00044068,5]
[340882409,1730007042366,-358.609035,0.00044068,14]
[340882410,1730007042377,-584.75,0.00044068,5]
[340882411,1730007042387,-358.609035,0.00044068,14]
[340882412,1730007042396,-584.75,0.00044068,5]
[340882413,1730007042407,-584.75,0.00044068,5]
[340882414,1730007042418,-358.609035,0.00044068,14]
[340882415,1730007042429,-584.75,0.00044068,5]
[340882416,1730007042440,-358.609035,0.00044068,14]
[340882417,1730007042451,-584.75,0.00044068,5]
[340882418,1730007042466,-584.75,0.00044068,5]
[340882419,1730007042476,-584.75,0.00044068,5]
[340882420,1730007042486,-358.609035,0.00044068,14]
[340882421,1730007042495,-584.75,0.00044068,5]
[340882422,1730007042503,-584.75,0.00044068,5]
[340882423,1730007042512,-584.75,0.00044068,5]
[340882424,1730007042521,-584.75,0.00044068,5]
[340882425,1730007042530,-584.75,0.00044068,5]
[340882426,1730007042539,-584.75,0.00044068,5]
[340882427,1730007042548,-358.609035,0.00044068,14]
[340882428,1730007042558,-584.75,0.00044068,5]
[340882429,1730007042568,-358.609035,0.00044068,14]
[340882430,1730007042578,-584.75,0.00044068,5]
[340882431,1730007042589,-584.75,0.00044068,5]
[340882432,1730007042601,-500.0,0.00044068,5]
[340882433,1730007042611,-358.609035,0.00044068,14]
[340882434,1730007042621,-488.26676499,0.00044068,5]
[340882435,1730007042639,-96.48323501,0.00044068,5]
[340882436,1730007042650,-358.609035,0.00044068,14]
[340882437,1730007042660,-584.75,0.00044068,5]
[340882438,1730007042672,-500.0,0.00044068,5]
[340882439,1730007042682,-500.0,0.00044068,5]
[340882440,1730007042691,-358.609035,0.00044068,14]
[340882441,1730007042700,-584.75,0.00044068,5]
[340882442,1730007042709,-500.0,0.00044068,5]
[340882443,1730007042719,-358.609035,0.00044068,14]
[340882444,1730007042731,-584.79117511,0.00044068,5]
[340882445,1730007042739,-458.37472955,0.00044068,5]
[340882446,1730007042748,-358.609035,0.00044068,14]
[340882447,1730007042757,-500.0,0.00044068,5]
[340882448,1730007042769,-403.84091861,0.00044068,5]
[340882449,1730007042778,-2099.13,0.00044068,5]
[340882450,1730007042788,-2099.13,0.00044068,5]
[340882451,1730007042798,-2099.13,0.00044068,5]
[340882452,1730007042807,-2099.13,0.00044068,5]
[340882453,1730007042816,-2099.13,0.00044068,5]
[340882454,1730007042825,-2099.13,0.00044068,5]
[340882455,1730007042836,-2099.13,0.00044068,5]
[340882456,1730007042845,-2099.13,0.00044068,5]
[340882457,1730007042854,-2099.13,0.00044068,5]
[340882458,1730007042863,-2099.13,0.00044068,5]
[340882459,1730007042871,-2099.13,0.00044068,5]
[340882460,1730007042881,-2099.13,0.00044068,5]
[340882461,1730007042890,-2099.13,0.00044068,5]
[340882462,1730007042899,-2099.13,0.00044068,5]
[340882463,1730007042907,-2099.13,0.00044068,5]
[340882464,1730007042916,-151.0,0.00044068,14]
[340882465,1730007042926,-2099.13,0.00044068,5]
[340882466,1730007042935,-2099.13,0.00044068,5]
[340882467,1730007042945,-2099.13,0.00044068,5]
[340882468,1730007042954,-151.0,0.00044068,14]
[340882469,1730007042963,-171.696584,0.00044068,14]
[340882470,1730007042972,-2099.13,0.00044068,5]
[340882471,1730007042981,-2099.13,0.00044068,5]
[340882472,1730007042990,-1104.15206137,0.00044068,5]
[340882473,1730007043003,-994.97793863,0.00044068,5]
[340882474,1730007043011,-1766.40206137,0.00044068,5]
[340882475,1730007043532,-332.94887864,0.00044068,5]
[340882476,1730007043541,-347.9617779,0.00044068,5]
[340882477,1730007043591,-824.84627606,0.00044068,5]
[340882486,1730007303158,1000.0,0.00013,10]
[340882515,1730008232433,-156.03,0.00015342,2]
[340882517,1730008232443,-159.36,0.00015342,2]
[340882518,1730008232452,-300.0,0.00019725,2]
[340882520,1730008232462,-285.07,0.00032447,2]
[340882522,1730008232471,-5500.61359657,0.00035,10]
[340882524,1730008232480,-647.57,0.00039467,2]
[340882525,1730008232489,-347.724,0.00039746,55]
[340882526,1730008232499,-152.0,0.00039746,3]
[340882527,1730008232507,-3033.11065193,0.000399,2]
[340882528,1730008232529,-0.52338473,0.000399,2]
[340882529,1730008232599,-3883.24346334,0.000399,2]
[340882530,1730008232608,-604.93,0.000399,2]
[340882531,1730008232617,-12285.14,0.000399,30]
[340882532,1730008232626,-9999.99,0.000399,2]
[340882533,1730008232635,-618.31,0.000399,2]
[340882534,1730008232643,-299.99,0.000399,120]
[340882535,1730008232652,-913.59,0.000399,2]
[340882536,1730008232661,-473.2,0.000399,30]
[340882537,1730008232670,-150.99,0.000399,30]
[340882538,1730008232679,-328.81,0.000399,2]
[340882539,1730008232688,-9999.99,0.000399,2]
[340882540,1730008232697,-8526.16,0.000399,2]
[340882541,1730008232706,-12656.54986855,0.00039927,2]
[340882624,1730008238381,-316.62500066,0.00039927,2]
[340882625,1730008238438,-987.45743925,0.00039927,2]
[340882626,1730008238450,-9939.36769154,0.00039927,2]
[340882627,1730008238460,-14395.79915722,0.0004,120]
[340882628,1730008238658,-570.38527418,0.0004,120]
[340882629,1730008238715,-9968.12792795,0.0004,120]
[340882630,1730008238730,-818.775,0.0004,120]
[340882631,1730008238742,-2500.0,0.0004,120]
[340882632,1730008238752,-13045.38669375,0.0004,120]
[340882633,1730008238763,-1003.36034067,0.0004,120]
[340882639,1730008240589,-6260.47386164,0.0004,120]
[340882640,1730008240647,-275.5344339,0.0004,120]
[340882641,1730008240706,-371.65632603,0.0004,120]
[340882642,1730008240718,-369.39621911,0.0004,120]
[340882655,1730008243639,-1509.59925405,0.0004,120]
[340882659,1730008246362,-905.43760515,0.0004,120]
[340882660,1730008246374,-3975.80907621,0.0004,120]
[340882661,1730008246419,-1546.58900404,0.0004,120]
[340882662,1730008246430,-2757.29232945,0.0004,120]
[340882663,1730008246484,-516.31484872,0.0004,120]
[340882664,1730008246496,-268.07224869,0.0004,120]
[340882665,1730008246506,-1417.56443875,0.0004,120]
[340882666,1730008246547,-1269.51983804,0.0004,120]
[340882667,1730008246559,-13505.9,0.0004,120]
[340882668,1730008246606,-2026.77504163,0.0004,120]
[340882669,1730008246617,-581.02513369,0.0004,120]
[340882670,1730008246665,-2965.75179079,0.0004,120]
[340882671,1730008246677,-6419.88959634,0.0004,120]
[340882672,1730008246686,-771.71,0.0004019,2]
[340882673,1730008246695,-250.0,0.00040269,2]
[340882674,1730008246704,-520.64,0.00040298,2]
[340882675,1730008246713,-150.0,0.00040373,2]
[340882676,1730008246723,-250.0,0.00040453,120]
[340882678,1730008246735,-150.0,0.00040557,7]
[340882680,1730008246744,-1226.13,0.00040601,2]
[340882681,1730008246753,-640.0,0.00040607,2]
[340882682,1730008246763,-4930.23,0.00040748,2]
[340882683,1730008246772,-1707.85,0.00040824,2]
[340882684,1730008246780,-527.51,0.00040899,2]
[340882686,1730008246790,-154.51,0.00041096,2]
[340882687,1730008246799,-250.0,0.00041209,2]
[340882688,1730008246808,-166.52,0.00041265,2]
[340882689,1730008246818,-156.18497669,0.00041413,60]
[340882690,1730008246827,-647.57,0.00041731,2]
[340882691,1730008246836,-170.97,0.00042189,120]
[340882692,1730008246844,-1653.47119297,0.00042307,15]
[340882693,1730008246855,-378.0594875,0.00042307,15]
[340882695,1730008819662,250.0,0.00015,2]
[340882698,1730009428080,2023.0,8.1e-05,2]
[340882715,1730009431473,-334.79012144,0.00015147,2]
[340882716,1730009431533,-2376.63429056,0.00015147,2]
[340882717,1730009431542,-30877.9908535,0.00015223,2]
[340882718,1730009431551,-154.38,0.00015342,2]
[340882719,1730009431561,-151.9293834,0.00015361,2]
[340882720,1730009431570,-300.0,0.00017,2]
[340882721,1730009431579,-386.0,0.000183,2]
[340882722,1730009431589,-277.951,0.0003,2]
[340882723,1730009431598,-5209.86,0.0003,2]
[340882724,1730009431608,-1099.99,0.0003,2]
[340882725,1730009431618,-277.951,0.00031081,2]
[340882726,1730009431627,-2498.2423024,0.00035,10]
[340882727,1730009431636,-278.179,0.0003612,44]
[340882728,1730009431646,-638.87,0.00038861,2]
[340882729,1730009431655,-203.66,0.00039468,2]
[340882730,1730009431664,-200.0,0.00039491,2]
[340882731,1730009431673,-166.51,0.00039492,2]
[340882732,1730009431684,-23900.0,0.00039771,2]
[340882733,1730009431693,-450.0,0.00039785,2]
[340882734,1730009431703,-814.0,0.00039785,2]
[340882735,1730009431713,-1980.0,0.00039785,2]
[340882736,1730009431723,-563.291,0.00039785,2]
[340882737,1730009431733,-1913.0,0.00039785,2]
[340882738,1730009431742,-3365.0,0.00039785,2]
[340882739,1730009431751,-811.0,0.00039785,2]
[340882740,1730009431761,-13562.0,0.00039785,2]
[340882741,1730009431770,-150.0,0.00039785,2]
[340882742,1730009431786,-5898.0,0.00039785,2]
[340882743,1730009431795,-836.621,0.00039785,2]
[340882744,1730009431804,-807.78,0.0003984,2]
[340882745,1730009431813,-250.0,0.00039945,2]
[340882746,1730009431822,-5495.11618114,0.0004,2]
[340882748,1730009431831,-250.0,0.00040109,2]
[340882750,1730009431840,-250.0,0.00040175,120]
[340882751,1730009431849,-150.0,0.00040383,7]
[340882753,1730009431858,-150.0,0.00040416,2]
[340882755,1730009431867,-155.61,0.0004069,2]
[340882757,1730009431876,-512.0,0.00040822,2]
[340882759,1730009431886,-154.51,0.00041096,2]
[340882761,1730009431895,-638.87,0.00041125,2]
[340882763,1730009431904,-424.14425734,0.00041441,2]
[340882765,1730009431913,-377.34,0.00042227,7]
[340882767,1730009431923,-10031.284,0.00042299,2]
[340882769,1730009431932,-1294.8804,0.00042299,2]
[340882771,1730009431941,-3214.135054,0.000423,15]
[340882774,1730009431950,-74684.4767,0.00042399,2]
[340882777,1730009431959,-1471.0,0.000424,5]
[340882779,1730009431968,-3214.13505395,0.00042484,15]
[340882781,1730009431976,-165.71,0.00042493,2]
[340882783,1730009431986,-250.0,0.00042499,2]
[340882785,1730009431995,-220.0,0.00042499,2]
[340882787,1730009432004,-272.941,0.00042499,2]
[340882788,1730009432014,-264.337,0.00042499,2]
[340882790,1730009432023,-200.0,0.00042499,2]
[340882792,1730009432032,-150.0,0.00042499,2]
[340882794,1730009432041,-156.0,0.00042499,2]
[340882796,1730009432050,-250.0,0.00042499,2]
[340882798,1730009432059,-281.45,0.00042499,2]
[340882800,1730009432068,-164.36,0.00042499,2]
[340882801,1730009432077,-561.0,0.00042499,2]
[340882803,1730009432088,-1247.0,0.00042499,2]
[340882805,1730009432099,-846.42,0.00042527,2]
[340882807,1730009432108,-488.0,0.0004261,2]
[340882809,1730009432118,-3214.13505395,0.00042668,15]
[340882811,1730009432127,-154.51,0.00042676,2]
[340882813,1730009432136,-450.0,0.00042785,2]
[340882815,1730009432145,-814.0,0.00042785,2]
[340882817,1730009432154,-1072.983,0.00042785,2]
[340882819,1730009432164,-556.0,0.00042785,2]
[340882821,1730009432176,-1913.0,0.00042785,2]
[340882824,1730009432190,-3365.0,0.00042785,2]
[340882826,1730009432205,-811.0,0.00042785,2]
[340882828,1730009432218,-13562.0,0.00042785,2]
[340882830,1730009432229,-5898.0,0.00042785,2]
[340882833,1730009432240,-151.0,0.00042852,14]
[340882835,1730009432252,-151.0,0.00042852,14]
[340882837,1730009432265,-196.620671,0.00042852,14]
[340882840,1730009432279,-196.620671,0.00042852,14]
[340882842,1730009432290,-151.0,0.00042852,14]
[340882844,1730009432302,-151.0,0.00042852,14]
[340882847,1730009432315,-151.0,0.00042852,14]
[340882849,1730009432331,-151.0,0.00042852,14]
[340882852,1730009432343,-333.264992,0.00042852,14]
[340882853,1730009432356,-333.264992,0.00042852,14]
[340882854,1730009432367,-234.317708,0.00042852,14]
[340882855,1730009432377,-234.317708,0.00042852,14]
[340882856,1730009432387,-3214.13505395,0.00042852,15]
[340882857,1730009432399,-3214.13505395,0.00043036,15]
[340882858,1730009432411,-3214.13505395,0.00043221,15]
[340882859,1730009432422,-170.41,0.00043387,2]
[340882860,1730009432433,-638.87,0.00043389,2]
[340882861,1730009432444,-3214.13505395,0.00043405,15]
[340882862,1730009432456,-3214.13505395,0.00043589,15]
[340882863,1730009432468,-500.0,0.00043655,120]
[340882864,1730009432479,-500.0,0.00043655,120]
[340882865,1730009432492,-500.0,0.00043655,120]
[340882866,1730009432505,-500.0,0.00043655,120]
[340882867,1730009432518,-500.0,0.00043655,120]
[340882868,1730009432529,-500.0,0.00043655,120]
[340882869,1730009432542,-500.0,0.00043655,120]
[340882870,1730009432555,-500.0,0.00043655,120]